fUST/lending_fUST_20250701
["ID","MTS","AMOUNT","RATE_DAILY","PERIOD"]
[368763799,1751351452625,-509.32,0.00020511,2]
[368763800,1751351452634,-460.0,0.00020511,2]
[368763801,1751351452643,-1151.81,0.00020511,2]
[368763802,1751351452653,-718.25,0.00020512,2]
[368763803,1751351452662,-460.0,0.00020512,2]
[368763804,1751351452671,-732.75,0.00020512,2]
[368763805,1751351452680,-460.0,0.00020512,2]
[368763806,1751351452689,-620.61,0.00020512,2]
[368763807,1751351452698,-1219.14,0.00020512,2]
[368763808,1751351452708,-460.0,0.00020512,2]
[368763809,1751351452717,-585.76,0.00020512,2]
[368763810,1751351452726,-460.0,0.00020514,2]
[368763811,1751351452735,-460.0,0.00020514,2]
[368763812,1751351452744,-157.49944196,0.00020567,2]
[368763813,1751351452754,-168.0,0.00020578,2]
[368763814,1751351452763,-215.0738,0.00020659,2]
[368763815,1751351452772,-433.008,0.00020693,2]
[368763816,1751351452781,-493.97,0.00020783,2]
[368763817,1751351452790,-460.0,0.00020784,2]
[368763818,1751351452799,-1344.77,0.00020784,2]
[368763819,1751351452808,-986.27,0.00020784,2]
[368763820,1751351452817,-660.44,0.00020784,2]
[368763821,1751351452827,-460.0,0.00020784,2]
[368763822,1751351452836,-827.49,0.00020784,2]
[368763823,1751351452845,-783.63,0.00020784,2]
[368763824,1751351452855,-538.36,0.00020784,2]
[368763825,1751351452864,-720.98,0.00020784,2]
[368763826,1751351452873,-460.0,0.00020785,2]
[368763827,1751351452882,-460.0,0.00020785,2]
[368763828,1751351452892,-852.87,0.00020785,2]
[368763829,1751351452901,-460.0,0.00020785,2]
[368763830,1751351452911,-1607.04,0.00020785,2]
[368763831,1751351452921,-460.0,0.00020785,2]
[368763832,1751351452930,-509.32,0.00020785,2]
[368763833,1751351452940,-460.0,0.00020785,2]
[368763834,1751351452950,-1151.81,0.00020785,2]
[368763835,1751351452960,-718.25,0.00020786,2]
[368763836,1751351452970,-460.0,0.00020786,2]
[368763837,1751351452979,-732.75,0.00020786,2]
[368763838,1751351452989,-460.0,0.00020786,2]
[368763839,1751351452998,-620.61,0.00020786,2]
[368763840,1751351453007,-1219.14,0.00020786,2]
[368763841,1751351453016,-460.0,0.00020786,2]
[368763842,1751351453026,-585.76,0.00020786,2]
[368763843,1751351453035,-460.0,0.00020788,2]
[368763844,1751351453048,-460.0,0.00020788,2]
[368763845,1751351453056,-646.0,0.00020828,2]
[368763846,1751351453066,-2151.0,0.00020828,2]
[368763847,1751351453075,-406.0,0.00020828,2]
[368763848,1751351453086,-424.076,0.00020828,2]
[368763849,1751351453095,-168.0,0.0002084,2]
[368763850,1751351453104,-151.0,0.000209,4]
[368763851,1751351453114,-158.97564435,0.00021025,2]
[368763852,1751351453124,-493.97,0.00021057,2]
[368763853,1751351453133,-460.0,0.00021058,2]
[368763854,1751351453143,-1344.77,0.00021058,2]
[368763855,1751351453152,-986.27,0.00021058,2]
[368763856,1751351453161,-660.44,0.00021058,2]
[368763857,1751351453170,-460.0,0.00021058,2]
[368763858,1751351453180,-827.49,0.00021058,2]
[368763859,1751351453189,-783.63,0.00021058,2]
[368763860,1751351453198,-538.36,0.00021058,2]
[368763861,1751351453208,-720.98,0.00021058,2]
[368763862,1751351453217,-460.0,0.00021059,2]
[368763863,1751351453227,-460.0,0.00021059,2]
[368763864,1751351453236,-852.87,0.00021059,2]
[368763865,1751351453245,-460.0,0.00021059,2]
[368763866,1751351453254,-1607.04,0.00021059,2]
[368763867,1751351453264,-460.0,0.00021059,2]
[368763868,1751351453344,-509.32,0.00021059,2]
[368763869,1751351453354,-460.0,0.00021059,2]
[368763870,1751351453363,-1151.81,0.00021059,2]
[368763871,1751351453373,-718.25,0.0002106,2]
[368763872,1751351453382,-460.0,0.0002106,2]
[368763873,1751351453392,-732.75,0.0002106,2]
[368763874,1751351453402,-460.0,0.0002106,2]
[368763875,1751351453411,-620.61,0.0002106,2]
[368763876,1751351453420,-1219.14,0.0002106,2]
[368763877,1751351453429,-460.0,0.0002106,2]
[368763878,1751351453438,-585.76,0.0002106,2]
[368763879,1751351453448,-460.0,0.00021062,2]
[368763880,1751351453457,-460.0,0.00021062,2]
[368763881,1751351453467,-10566.96406666,0.000212,30]
[368763882,1751351453476,-213.87551669,0.000212,30]
[368763883,1751351453486,-493.97,0.00021331,2]
[368763884,1751351453495,-460.0,0.00021332,2]
[368763885,1751351453504,-1344.77,0.00021332,2]
[368763886,1751351453514,-986.27,0.00021332,2]
[368763887,1751351453523,-660.44,0.00021332,2]
[368763888,1751351453533,-460.0,0.00021332,2]
[368763889,1751351453543,-827.49,0.00021332,2]
[368763890,1751351453552,-783.63,0.00021332,2]
[368763891,1751351453561,-538.36,0.00021332,2]
[368763892,1751351453570,-720.98,0.00021332,2]
[368763893,1751351453580,-460.0,0.00021333,2]
[368763894,1751351453589,-460.0,0.00021333,2]
[368763895,1751351453599,-852.87,0.00021333,2]
[368763896,1751351453608,-460.0,0.00021333,2]
[368763897,1751351453618,-1607.04,0.00021333,2]
[368763898,1751351453627,-460.0,0.00021333,2]
[368763899,1751351453638,-509.32,0.00021333,2]
[368763900,1751351453647,-460.0,0.00021333,2]
[368763901,1751351453657,-1151.81,0.00021333,2]
[368763902,1751351453667,-718.25,0.00021334,2]
[368763903,1751351453676,-460.0,0.00021334,2]
[368763904,1751351453686,-732.75,0.00021334,2]
[368763905,1751351453695,-365.87,0.00021334,2]
[368763906,1751351453706,-620.61,0.00021334,2]
[368763907,1751351453717,-1219.14,0.00021334,2]
[368763908,1751351453726,-460.0,0.00021334,2]
[368763909,1751351453736,-585.76,0.00021334,2]
[368763910,1751351453745,-292.63,0.00021336,2]
[368763911,1751351453755,-460.0,0.00021336,2]
[368763912,1751351453764,-4000.0,0.00021371,4]
[368763913,1751351453773,-178.27686116,0.000214,2]
[368763914,1751351453783,-157.49944196,0.0002144,2]
[368763915,1751351453793,-500.0,0.00021473,2]
[368763916,1751351453802,-500.0,0.00021473,2]
[368763917,1751351453811,-503.93424813,0.00021473,2]
[368763918,1751351453820,-600.0,0.00021473,2]
[368763919,1751351453830,-500.0,0.00021473,2]
[368763920,1751351453839,-500.0,0.00021473,2]
[368763921,1751351453849,-500.0,0.00021473,2]
[368763922,1751351453858,-500.0,0.00021473,2]
[368763923,1751351453867,-500.0,0.00021473,2]
[368763924,1751351453877,-500.0,0.00021473,2]
[368763925,1751351453886,-126345.372568,0.00021499,2]
[368763926,1751351454016,-56022.12113084,0.00021499,2]
[368763927,1751351454121,-460.529895,0.00018043,2]
[368763928,1751351454132,-308.89322404,0.00018043,2]
[368763929,1751351454144,-217.49677596,0.00018043,2]
[368763930,1751351454154,-118028.42790633,0.00021499,2]
[368763931,1751351454168,-81954.82383989,0.00021499,2]
[368763932,1751351454222,-1623.9999968,0.00021499,2]
[368763933,1751351454266,159.69101139,0.00017834,2]
[368763934,1751351454306,-460.0,0.00018045,2]
[368763935,1751351454315,-14824.81812315,0.00021499,2]
[368763936,1751351454966,-283.15080619,0.00021499,2]
[368763937,1751351454978,-5691.12857096,0.00021499,2]
[368763938,1751351482227,152.19441272,0.00017943,2]
[368763939,1751351487575,150.5,0.0002199,120]
[368763940,1751351488014,150.5,0.0002198,120]
[368763941,1751351488457,150.5,0.0002197,120]
[368763942,1751351488898,150.5,0.00023989,120]
[368763943,1751351489439,150.5,0.00023979,120]
[368763944,1751351489778,195.31,0.00023969,120]
[368763945,1751351523847,159.80413337,0.00017942,2]
[368763946,1751351524179,159.80413333,0.00017943,2]
[368763947,1751351524530,159.80413333,0.00017943,2]
[368763948,1751351524872,159.80413333,0.00017944,2]
[368763949,1751351525239,159.80413333,0.00017944,2]
[368763950,1751351526060,-283.0,0.00018041,2]
[368763951,1751351537085,324.22666063,0.00024658,120]
[368763954,1751351556497,295.94937027,0.00025235,60]
[368763955,1751351582549,5942.46726,0.00025235,120]
[368763956,1751351583579,178.27686116,0.00017945,2]
[368763957,1751351585344,155.0,0.00025235,60]
[368763958,1751351600678,155.0,0.00025235,60]
[368763959,1751351607209,150.5,0.0002191,120]
[368763960,1751351607643,150.5,0.000219,120]
[368763961,1751351608151,150.5,0.0002189,120]
[368763962,1751351608598,160.0,0.00023481,120]
[368763963,1751351625813,165.32716854,0.00017944,2]
[368763964,1751351667556,155.0,0.00025208,60]
[368763965,1751351693493,155.0,0.00025208,60]
[368763966,1751351703214,1159.31884602,0.00025208,120]
[368763967,1751351724911,155.0,0.00025208,60]
[368763968,1751351797860,1000.0,0.00025208,120]
[368763969,1751351805799,1000.0,0.00025208,120]
[368763970,1751351813788,1000.0,0.00025208,120]
[368763973,1751351821993,514.0,0.00025208,120]
[368763975,1751351847762,465.0,0.00025208,60]
[368763976,1751351850858,200.0,0.00024572,120]
[368763977,1751351869386,2000.0,0.00017046,120]
[368763978,1751351878665,465.0,0.00025208,60]
[368763980,1751351899301,163.73928753,0.00017943,2]
[368763982,1751351970132,-300.0,0.00018041,2]
[368763983,1751351970154,-300.0,0.00018041,2]
[368763984,1751351970175,-460.0,0.00018042,2]
[368763985,1751351970197,-460.0,0.00018042,2]
[368763986,1751351970222,-460.0,0.00018042,2]
[368763987,1751351970243,-460.0,0.00018042,2]
[368763988,1751351970264,-460.0,0.00018042,2]
[368763989,1751351970285,-460.0,0.00018042,2]
[368763990,1751351970306,-460.0,0.00018042,2]
[368763991,1751351970327,-463.76360496,0.00018042,2]
[368763992,1751351970347,-460.0,0.00018042,2]
[368763993,1751351970368,-460.0,0.00018042,2]
[368763994,1751351970391,-460.0,0.00018042,2]
[368763995,1751351970414,-460.0,0.00018042,2]
[368763996,1751351970437,-462.37236553,0.00018042,2]
[368763997,1751351970458,-460.0,0.00018042,2]
[368763998,1751351970481,-668.33,0.00018042,2]
[368763999,1751351970502,-413.84811214,0.00018042,2]
[368764000,1751351970522,-460.0,0.00018042,2]
[368764001,1751351970544,-350.31988276,0.00018042,2]
[368764002,1751351970565,-460.0,0.00018042,2]
[368764003,1751351970588,-787.79,0.00018042,2]
[368764004,1751351970609,-514.08369266,0.00018042,2]
[368764005,1751351970633,-460.0,0.00018042,2]
[368764006,1751351970656,-460.0,0.00018042,2]
[368764007,1751351970680,-500.0,0.00018042,2]
[368764008,1751351970702,-174.54540176,0.00018042,2]
[368764009,1751351970724,-258.91941248,0.00018042,2]
[368764010,1751351970746,-460.0,0.00018042,2]
[368764011,1751351970768,-460.0,0.00018042,2]
[368764012,1751351970788,-443.03961644,0.00018042,2]
[368764013,1751351970809,-460.0,0.00018042,2]
[368764014,1751351970830,-460.0,0.00018042,2]
[368764015,1751351970852,-467.06552536,0.00018042,2]
[368764016,1751351970982,-460.0,0.00018042,2]
[368764017,1751351971007,-460.0,0.00018042,2]
[368764018,1751351971030,-460.0,0.00018042,2]
[368764019,1751351971052,-460.0,0.00018042,2]
[368764020,1751351971075,-460.0,0.00018042,2]
[368764021,1751351971098,-460.0,0.00018042,2]
[368764022,1751351971122,-460.0,0.00018042,2]
[368764023,1751351971144,-1218.93,0.00018042,2]
[368764024,1751351971166,-460.0,0.00018042,2]
[368764025,1751351971188,-544.5,0.00018042,2]
[368764026,1751351971212,-690.88,0.00018042,2]
[368764027,1751351971234,-739.71,0.00018042,2]
[368764028,1751351971256,-375.68016663,0.00018043,2]
[368764029,1751351971280,-460.0,0.00018043,2]
[368764030,1751351971301,-460.0,0.00018043,2]
[368764031,1751351971322,-460.0,0.00018043,2]
[368764032,1751351971343,-460.0,0.00018043,2]
[368764033,1751351971365,-460.0,0.00018043,2]
[368764034,1751351971386,-460.0,0.00018043,2]
[368764035,1751351971409,-460.0,0.00018043,2]
[368764036,1751351971429,-460.0,0.00018043,2]
[368764037,1751351971450,-460.0,0.00018043,2]
[368764038,1751351971472,-460.0,0.00018043,2]
[368764039,1751351971495,-460.0,0.00018043,2]
[368764040,1751351971519,-460.0,0.00018043,2]
[368764041,1751351971543,-460.0,0.00018043,2]
[368764042,1751351971564,-460.0,0.00018043,2]
[368764043,1751351971587,-460.0,0.00018043,2]
[368764044,1751351971611,-460.0,0.00018043,2]
[368764045,1751351971633,-460.0,0.00018043,2]
[368764046,1751351971657,-460.0,0.00018043,2]
[368764047,1751351971680,-460.0,0.00018043,2]
[368764048,1751351971702,-460.0,0.00018043,2]
[368764049,1751351971722,-463.93709155,0.00018043,2]
[368764050,1751351971744,-460.0,0.00018043,2]
[368764051,1751351971764,-438.14025549,0.00018043,2]
[368764052,1751351971790,-460.0,0.00018043,2]
[368764053,1751351971811,-460.0,0.00018043,2]
[368764054,1751351971831,-460.0,0.00018043,2]
[368764055,1751351971853,-460.0,0.00018043,2]
[368764056,1751351971875,-460.0,0.00018043,2]
[368764057,1751351971895,-460.0,0.00018043,2]
[368764058,1751351971916,-460.0,0.00018043,2]
[368764059,1751351971937,-462.22275854,0.00018043,2]
[368764060,1751351971958,-460.0,0.00018043,2]
[368764061,1751351971980,-460.0,0.00018043,2]
[368764062,1751351972002,-460.0,0.00018043,2]
[368764063,1751351972023,-460.0,0.00018043,2]
[368764064,1751351972043,-460.0,0.00018043,2]
[368764065,1751351972066,-460.0,0.00018043,2]
[368764066,1751351972090,-460.0,0.00018043,2]
[368764067,1751351972113,-460.0,0.00018043,2]
[368764068,1751351972137,-460.0,0.00018043,2]
[368764069,1751351972160,-460.0,0.00018043,2]
[368764070,1751351972182,-466.08490428,0.00018043,2]
[368764071,1751351972205,-460.0,0.00018043,2]
[368764072,1751351972229,-462.30853553,0.00018043,2]
[368764073,1751351972250,-460.0,0.00018043,2]
[368764074,1751351972273,-460.0,0.00018043,2]
[368764075,1751351972299,-460.0,0.00018043,2]
[368764076,1751351972320,-460.0,0.00018043,2]
[368764077,1751351972344,-460.0,0.00018043,2]
[368764078,1751351972364,-460.0,0.00018043,2]
[368764079,1751351972385,-460.0,0.00018043,2]
[368764080,1751351972407,-292.31184751,0.00018043,2]
[368764081,1751351972428,-460.0,0.00018043,2]
[368764082,1751351972449,-460.0,0.00018043,2]
[368764083,1751351972469,-471.5532745,0.00018043,2]
[368764084,1751351972490,-460.0,0.00018043,2]
[368764085,1751351972511,-460.0,0.00018043,2]
[368764086,1751351972531,-460.0,0.00018043,2]
[368764087,1751351972552,-460.0,0.00018043,2]
[368764088,1751351972572,-460.0,0.00018043,2]
[368764089,1751351972593,-423.8672744,0.00018043,2]
[368764090,1751351972615,-455.0,0.00018043,2]
[368764091,1751351972636,-410.79627748,0.00018043,2]
[368764092,1751352090047,-300.0,0.00018041,2]
[368764093,1751352090071,-300.0,0.00018041,2]
[368764094,1751352090093,-1200.0,0.00018041,2]
[368764095,1751352090115,-460.0,0.00018042,2]
[368764096,1751352090137,-460.0,0.00018042,2]
[368764097,1751352090159,-460.0,0.00018042,2]
[368764098,1751352090180,-460.0,0.00018042,2]
[368764099,1751352090201,-460.0,0.00018042,2]
[368764100,1751352090222,-460.0,0.00018042,2]
[368764101,1751352090245,-750.56,0.00018042,2]
[368764102,1751352090268,-925.17,0.00018042,2]
[368764103,1751352090295,-852.91,0.00018042,2]
[368764104,1751352090322,-460.0,0.00018042,2]
[368764105,1751352090345,-460.0,0.00018042,2]
[368764106,1751352090369,-460.0,0.00018042,2]
[368764107,1751352090391,-460.0,0.00018042,2]
[368764108,1751352090413,-441.03,0.00018042,2]
[368764109,1751352090436,-460.0,0.00018042,2]
[368764110,1751352090459,-460.0,0.00018042,2]
[368764111,1751352090483,-460.0,0.00018042,2]
[368764112,1751352090506,-460.0,0.00018042,2]
[368764113,1751352090531,-460.0,0.00018042,2]
[368764114,1751352090557,-460.0,0.00018042,2]
[368764115,1751352090584,-51.19776388,0.00018043,2]
[368764116,1751352090606,-460.0,0.00018043,2]
[368764117,1751352090628,-460.0,0.00018043,2]
[368764118,1751352090649,-460.0,0.00018043,2]
[368764119,1751352090671,-302.13223612,0.00018043,2]
[368764120,1751352110729,207.632327,0.00013699,2]
[368764121,1751352168058,153.86,0.00025211,60]
[368764122,1751352175411,-157.0,0.00018041,2]
[368764123,1751352185898,194.06512926,0.00017943,2]
[368764126,1751352224425,2505.0,0.00025211,60]
[368764128,1751352357267,-460.0,0.00018041,2]
[368764129,1751352357288,-284.13559218,0.00018041,2]
[368764130,1751352430085,-709.0,0.0001804,2]
[368764131,1751352430108,-300.0,0.0001804,2]
[368764132,1751352430131,-460.0,0.00018041,2]
[368764133,1751352430155,-356.94297724,0.00018041,2]
[368764134,1751352466133,189.67894362,0.00017942,2]
[368764135,1751352486070,500.0,0.0002522,60]
[368764136,1751352505089,910.0,0.0002522,60]
[368764138,1751352541791,1380.0,0.0002522,60]
[368764139,1751352544501,-163.75489393,0.00018035,3]
[368764140,1751352567782,1848.0,0.0002523,60]
[368764141,1751352597371,1508.0,0.0002523,60]
[368764142,1751352619171,1380.0,0.0002523,60]
[368764176,1751352631988,-298.00510607,0.00018035,3]
[368764178,1751352631999,-124.11824141,0.00018035,3]
[368764180,1751352632011,-260.68175859,0.00018035,3]
[368764183,1751352632157,-93.1121765,0.00018035,3]
[368764184,1751352632170,-99.2878235,0.00018035,3]
[368764185,1751352632180,-577.25,0.00018035,3]
[368764186,1751352632189,-300.0,0.0001804,2]
[368764187,1751352632199,-722.0,0.0001804,2]
[368764188,1751352632208,-460.0,0.00018041,2]
[368764189,1751352632218,-460.0,0.00018041,2]
[368764190,1751352632227,-460.0,0.00018041,2]
[368764191,1751352632237,-460.0,0.00018041,2]
[368764192,1751352632247,-460.0,0.00018041,2]
[368764193,1751352632256,-598.93259095,0.00018041,2]
[368764194,1751352632266,-460.0,0.00018041,2]
[368764195,1751352632275,-460.0,0.00018041,2]
[368764196,1751352632284,-460.0,0.00018041,2]
[368764197,1751352632295,-460.0,0.00018041,2]
[368764198,1751352632304,-460.0,0.00018041,2]
[368764199,1751352632314,-460.0,0.00018041,2]
[368764200,1751352632323,-460.0,0.00018041,2]
[368764201,1751352632333,-460.0,0.00018041,2]
[368764202,1751352632342,-190.35274342,0.00018041,2]
[368764203,1751352632351,-460.53739214,0.00018041,2]
[368764204,1751352632361,-1021.65,0.00018041,2]
[368764205,1751352632370,-460.0,0.00018041,2]
[368764206,1751352632379,-460.0,0.00018041,2]
[368764207,1751352632389,-460.0,0.00018041,2]
[368764208,1751352632398,-460.0,0.00018041,2]
[368764209,1751352632407,-460.0,0.00018041,2]
[368764210,1751352632417,-460.0,0.00018041,2]
[368764211,1751352632426,-460.0,0.00018041,2]
[368764212,1751352632436,-460.0,0.00018041,2]
[368764213,1751352632445,-460.0,0.00018041,2]
[368764214,1751352632455,-460.0,0.00018041,2]
[368764215,1751352632464,-460.0,0.00018041,2]
[368764216,1751352632475,-460.0,0.00018041,2]
[368764217,1751352632484,-462.40804706,0.00018041,2]
[368764218,1751352632494,-460.0,0.00018041,2]
[368764219,1751352632503,-460.0,0.00018041,2]
[368764220,1751352632513,-460.0,0.00018041,2]
[368764221,1751352632522,-1091.97,0.00018041,2]
[368764222,1751352632532,-460.0,0.00018041,2]
[368764223,1751352632542,-460.0,0.00018041,2]
[368764224,1751352632551,-460.0,0.00018041,2]
[368764225,1751352632560,-1008.90434522,0.00018041,2]
[368764226,1751352632570,-460.0,0.00018041,2]
[368764227,1751352632579,-460.0,0.00018041,2]
[368764228,1751352632589,-1226.63,0.00018041,2]
[368764229,1751352632599,-460.0,0.00018041,2]
[368764230,1751352632608,-460.0,0.00018041,2]
[368764231,1751352632617,-460.0,0.00018041,2]
[368764232,1751352632627,-460.0,0.00018041,2]
[368764233,1751352632636,-717.5,0.00018041,2]
[368764234,1751352632646,-460.0,0.00018041,2]
[368764235,1751352632655,-460.0,0.00018041,2]
[368764236,1751352632665,-460.0,0.00018041,2]
[368764237,1751352632674,-433.12780644,0.00018041,2]
[368764238,1751352632683,-460.0,0.00018041,2]
[368764239,1751352632694,-591.39,0.00018041,2]
[368764240,1751352632703,-460.0,0.00018041,2]
[368764241,1751352632712,-460.0,0.00018041,2]
[368764242,1751352632722,-460.0,0.00018041,2]
[368764243,1751352632731,-460.0,0.00018041,2]
[368764244,1751352632741,-460.0,0.00018041,2]
[368764245,1751352632750,-463.48467762,0.00018041,2]
[368764246,1751352632760,-460.0,0.00018041,2]
[368764247,1751352632769,-460.0,0.00018041,2]
[368764248,1751352632779,-460.0,0.00018041,2]
[368764249,1751352632788,-460.0,0.00018041,2]
[368764250,1751352632798,-460.0,0.00018041,2]
[368764251,1751352632807,-460.0,0.00018041,2]
[368764252,1751352632817,-553.14780355,0.00018041,2]
[368764253,1751352632827,-1731.59,0.00018041,2]
[368764254,1751352632836,-460.0,0.00018041,2]
[368764255,1751352632846,-460.0,0.00018041,2]
[368764256,1751352632856,-460.0,0.00018041,2]
[368764257,1751352632866,-460.0,0.00018041,2]
[368764258,1751352632876,-460.0,0.00018041,2]
[368764259,1751352632885,-460.0,0.00018041,2]
[368764260,1751352632895,-460.0,0.00018041,2]
[368764261,1751352632904,-460.0,0.00018041,2]
[368764262,1751352632915,-460.0,0.00018041,2]
[368764263,1751352632924,-460.0,0.00018041,2]
[368764264,1751352632934,-500.0,0.00018041,2]
[368764265,1751352632943,-500.0,0.00018041,2]
[368764266,1751352632953,-479.88267826,0.00018041,2]
[368764267,1751352632963,-500.0,0.00018042,2]
[368764268,1751352632972,-547.0,0.00018042,2]
[368764269,1751352632982,-460.0,0.00018042,2]
[368764270,1751352632992,-200.0,0.00018042,2]
[368764271,1751352633001,-460.0,0.00018042,2]
[368764272,1751352633011,-460.0,0.00018042,2]
[368764273,1751352633020,-460.0,0.00018042,2]
[368764274,1751352633030,-460.0,0.00018042,2]
[368764275,1751352633040,-460.0,0.00018042,2]
[368764276,1751352633050,-460.0,0.00018042,2]
[368764277,1751352633059,-460.0,0.00018042,2]
[368764278,1751352633068,-460.0,0.00018042,2]
[368764279,1751352633077,-460.0,0.00018042,2]
[368764280,1751352633087,-501.93757767,0.00018042,2]
[368764281,1751352633096,-460.0,0.00018042,2]
[368764282,1751352633106,-460.0,0.00018042,2]
[368764283,1751352633115,-460.0,0.00018042,2]
[368764284,1751352633125,-547.35824979,0.00018042,2]
[368764285,1751352633134,-460.0,0.00018042,2]
[368764286,1751352633144,-460.0,0.00018042,2]
[368764287,1751352633154,-460.0,0.00018042,2]
[368764288,1751352633163,-460.0,0.00018042,2]
[368764289,1751352633173,-460.0,0.00018042,2]
[368764290,1751352633182,-460.0,0.00018042,2]
[368764291,1751352633192,-461.5459654,0.00018042,2]
[368764292,1751352633201,-461.14384665,0.00018042,2]
[368764293,1751352633210,-460.0,0.00018042,2]
[368764294,1751352633220,-460.0,0.00018042,2]
[368764295,1751352633230,-460.0,0.00018042,2]
[368764296,1751352633239,-460.0,0.00018042,2]
[368764297,1751352633249,-460.0,0.00018042,2]
[368764298,1751352633258,-448.49945234,0.00018042,2]
[368764299,1751352633268,-460.0,0.00018042,2]
[368764300,1751352633277,-460.0,0.00018042,2]
[368764301,1751352633287,-460.0,0.00018042,2]
[368764302,1751352633298,-464.54488704,0.00018042,2]
[368764303,1751352633307,-460.0,0.00018042,2]
[368764304,1751352633316,-500.0,0.00018042,2]
[368764305,1751352633326,-460.0,0.00018042,2]
[368764306,1751352633335,-460.0,0.00018042,2]
[368764307,1751352633344,-462.00322308,0.00018042,2]
[368764308,1751352633354,-460.0,0.00018042,2]
[368764309,1751352633364,-462.57621879,0.00018042,2]
[368764310,1751352633373,-460.0,0.00018042,2]
[368764311,1751352633382,-460.0,0.00018042,2]
[368764312,1751352633392,-460.0,0.00018042,2]
[368764313,1751352633401,-460.0,0.00018042,2]
[368764314,1751352633411,-460.0,0.00018042,2]
[368764315,1751352633420,-460.0,0.00018042,2]
[368764316,1751352633430,-460.0,0.00018042,2]
[368764317,1751352633440,-460.0,0.00018042,2]
[368764318,1751352633451,-460.0,0.00018042,2]
[368764319,1751352633461,-460.0,0.00018042,2]
[368764320,1751352633471,-460.0,0.00018042,2]
[368764321,1751352633486,-460.0,0.00018042,2]
[368764322,1751352633495,-460.0,0.00018042,2]
[368764323,1751352633504,-460.0,0.00018042,2]
[368764324,1751352633514,-460.0,0.00018042,2]
[368764325,1751352633524,-460.0,0.00018042,2]
[368764326,1751352633534,-460.0,0.00018042,2]
[368764327,1751352633544,-460.0,0.00018042,2]
[368764328,1751352633555,-460.0,0.00018042,2]
[368764329,1751352633564,-460.0,0.00018042,2]
[368764330,1751352633575,-460.0,0.00018042,2]
[368764331,1751352633584,-460.0,0.00018042,2]
[368764332,1751352633594,-460.0,0.00018042,2]
[368764333,1751352633604,-460.0,0.00018042,2]
[368764334,1751352633614,-460.0,0.00018042,2]
[368764335,1751352633624,-460.0,0.00018042,2]
[368764336,1751352633634,-258.48,0.00018042,2]
[368764337,1751352633644,-229.42541191,0.00018042,2]
[368764338,1751352633656,-460.0,0.00018042,2]
[368764339,1751352633666,-460.0,0.00018042,2]
[368764340,1751352633676,-480.5,0.00018042,2]
[368764341,1751352633686,-460.0,0.00018042,2]
[368764342,1751352633696,-460.0,0.00018042,2]
[368764343,1751352633706,-460.0,0.00018042,2]
[368764344,1751352633715,-460.0,0.00018042,2]
[368764345,1751352633724,-460.0,0.00018042,2]
[368764346,1751352633734,-460.0,0.00018042,2]